fUSD/lending_fUSD_20250611
["ID","MTS","AMOUNT","RATE_DAILY","PERIOD"]
[365454576,1749679861780,-490.0,0.00019671,2]
[365454577,1749679861790,-559.77,0.00019671,2]
[365454578,1749679861799,-490.0,0.00019671,2]
[365454579,1749679861809,-490.0,0.00019671,2]
[365454580,1749679861818,-618.92,0.00019671,2]
[365454581,1749679861828,-490.0,0.00019671,2]
[365454582,1749679861838,-490.0,0.00019671,2]
[365454583,1749679861849,-490.0,0.00019671,2]
[365454584,1749679861859,-490.0,0.00019671,2]
[365454585,1749679861869,-490.0,0.00019671,2]
[365454586,1749679861879,-490.0,0.00019671,2]
[365454587,1749679861890,-588.6,0.00019671,2]
[365454588,1749679861905,-490.0,0.00019671,2]
[365454589,1749679861916,-490.0,0.00019671,2]
[365454590,1749679861926,-428.30710734,0.00019671,2]
[365454591,1749679861936,-552.36,0.00019671,2]
[365454592,1749679861946,-490.0,0.00019671,2]
[365454593,1749679861955,-490.0,0.00019671,2]
[365454594,1749679861966,-420.0,0.00019671,2]
[365454595,1749679861975,-941.26,0.00019671,2]
[365454596,1749679861985,-450.0,0.00019671,2]
[365454597,1749679861995,-490.0,0.00019671,2]
[365454598,1749679862005,-420.0,0.00019671,2]
[365454599,1749679862015,-490.0,0.00019671,2]
[365454600,1749679862024,-490.0,0.00019671,2]
[365454601,1749679862034,-490.0,0.00019671,2]
[365454602,1749679862043,-490.0,0.00019671,2]
[365454603,1749679862053,-997.32,0.00019671,2]
[365454604,1749679862062,-223.48305285,0.00019671,2]
[365454605,1749679862072,-662.42,0.00019671,2]
[365454606,1749679862082,-490.0,0.00019671,2]
[365454607,1749679862091,-490.0,0.00019671,2]
[365454608,1749679862100,-490.0,0.00019671,2]
[365454609,1749679862109,-490.0,0.00019671,2]
[365454610,1749679862118,-529.23364812,0.00019671,2]
[365454611,1749679862127,-490.0,0.00019671,2]
[365454612,1749679862136,-490.0,0.00019671,2]
[365454613,1749679862146,-701.54,0.00019671,2]
[365454614,1749679862155,-420.0,0.00019671,2]
[365454615,1749679862164,-490.0,0.00019671,2]
[365454616,1749679862175,-490.0,0.00019671,2]
[365454617,1749679862184,-502.03,0.00019671,2]
[365454618,1749679862193,-490.0,0.00019671,2]
[365454619,1749679862202,-490.0,0.00019671,2]
[365454620,1749679862211,-490.0,0.00019671,2]
[365454621,1749679862220,-490.0,0.00019671,2]
[365454622,1749679862229,-490.0,0.00019671,2]
[365454623,1749679862238,-400.0,0.00019671,2]
[365454624,1749679862248,-490.0,0.00019671,2]
[365454625,1749679862257,-490.0,0.00019671,2]
[365454626,1749679862266,-490.0,0.00019671,2]
[365454627,1749679862276,-490.0,0.00019671,2]
[365454628,1749679862285,-603.65707478,0.00019671,2]
[365454629,1749679862294,-490.0,0.00019671,2]
[365454630,1749679862304,-490.0,0.00019671,2]
[365454631,1749679862313,-733.83,0.00019671,2]
[365454632,1749679862322,-490.0,0.00019671,2]
[365454633,1749679862331,-490.0,0.00019671,2]
[365454634,1749679862341,-745.12,0.00019671,2]
[365454635,1749679862351,-350.5195303,0.00019671,2]
[365454636,1749679862360,-643.13,0.00019671,2]
[365454637,1749679862369,-490.0,0.00019671,2]
[365454638,1749679862379,-490.0,0.00019671,2]
[365454639,1749679862388,-480.0,0.00019671,2]
[365454640,1749679862398,-410.0,0.00019671,2]
[365454641,1749679862407,-490.0,0.00019671,2]
[365454642,1749679862416,-490.0,0.00019671,2]
[365454643,1749679862427,-490.0,0.00019671,2]
[365454644,1749679862437,-490.0,0.00019671,2]
[365454645,1749679862446,-679.97,0.00019671,2]
[365454646,1749679862456,-551.23,0.00019671,2]
[365454647,1749679862465,-490.0,0.00019671,2]
[365454648,1749679862475,-195.76525647,0.00019671,2]
[365454649,1749679862484,-490.0,0.00019671,2]
[365454650,1749679862494,-490.0,0.00019671,2]
[365454651,1749679862503,-617.53,0.00019671,2]
[365454652,1749679862512,-780.26,0.00019671,2]
[365454653,1749679862522,-490.0,0.00019671,2]
[365454654,1749679862531,-490.0,0.00019671,2]
[365454655,1749679862541,-490.0,0.00019671,2]
[365454656,1749679862550,-490.0,0.00019671,2]
[365454657,1749679862560,-490.0,0.00019671,2]
[365454658,1749679862569,-732.22,0.00019671,2]
[365454659,1749679862578,-623.39,0.00019671,2]
[365454660,1749679862587,-613.56,0.00019671,2]
[365454661,1749679862597,-490.0,0.00019671,2]
[365454662,1749679862607,-579.5,0.00019671,2]
[365454663,1749679862617,-490.0,0.00019671,2]
[365454664,1749679862626,-490.0,0.00019671,2]
[365454665,1749679862636,-490.0,0.00019671,2]
[365454666,1749679862645,-490.0,0.00019671,2]
[365454667,1749679862654,-565.72,0.00019671,2]
[365454668,1749679862664,-490.0,0.00019671,2]
[365454669,1749679862675,-490.0,0.00019671,2]
[365454670,1749679862684,-611.02,0.00019671,2]
[365454671,1749679862694,-490.0,0.00019671,2]
[365454672,1749679862704,-330.0,0.00019671,2]
[365454673,1749679862714,-652.09,0.00019671,2]
[365454674,1749679862724,-490.0,0.00019671,2]
[365454675,1749679862734,-490.0,0.00019671,2]
[365454676,1749679862744,-490.0,0.00019671,2]
[365454677,1749679862754,-490.0,0.00019671,2]
[365454678,1749679862763,-3531.7,0.00019671,2]
[365454679,1749679862773,-628.62,0.00019671,2]
[365454680,1749679862783,-552.82,0.00019671,2]
[365454681,1749679862792,-490.0,0.00019671,2]
[365454682,1749679862802,-490.0,0.00019671,2]
[365454683,1749679862811,-490.0,0.00019671,2]
[365454684,1749679862821,-490.0,0.00019671,2]
[365454685,1749679862830,-9261.7,0.00019671,2]
[365454686,1749679862840,-490.0,0.00019671,2]
[365454687,1749679862850,-490.0,0.00019671,2]
[365454688,1749679862859,-490.0,0.00019671,2]
[365454689,1749679862869,-1079.03,0.00019671,2]
[365454690,1749679862879,-490.0,0.00019671,2]
[365454691,1749679862889,-979.82,0.00019671,2]
[365454692,1749679862905,-1536.12,0.00019671,2]
[365454693,1749679862915,-1000.0,0.00019671,2]
[365454694,1749679862925,-693.35,0.00019671,2]
[365454695,1749679862936,-490.0,0.00019671,2]
[365454696,1749679862945,-1066.08,0.00019671,2]
[365454697,1749679862955,-490.0,0.00019671,2]
[365454698,1749679862965,-711.41,0.00019671,2]
[365454699,1749679862976,-694.36,0.00019671,2]
[365454700,1749679862986,-490.0,0.00019671,2]
[365454701,1749679862996,-773.18,0.00019671,2]
[365454702,1749679863006,-748.22,0.00019671,2]
[365454703,1749679863016,-490.0,0.00019671,2]
[365454704,1749679863026,-1168.40773,0.00019671,2]
[365454705,1749679863036,-490.0,0.00019671,2]
[365454706,1749679863047,-490.0,0.00019671,2]
[365454707,1749679863057,-490.0,0.00019671,2]
[365454708,1749679863067,-560.76,0.00019671,2]
[365454709,1749679863077,-490.0,0.00019671,2]
[365454710,1749679863087,-519.88,0.00019671,2]
[365454711,1749679863097,-490.0,0.00019671,2]
[365454712,1749679863107,-1339.12,0.00019671,2]
[365454713,1749679863116,-703.43,0.00019671,2]
[365454714,1749679863126,-490.0,0.00019671,2]
[365454715,1749679863135,-490.0,0.00019671,2]
[365454716,1749679863145,-588.32,0.00019671,2]
[365454717,1749679863154,-1142.31,0.00019671,2]
[365454718,1749679863164,-490.0,0.00019671,2]
[365454719,1749679863175,-977.9,0.00019671,2]
[365454720,1749679863184,-490.0,0.00019671,2]
[365454721,1749679863194,-490.0,0.00019671,2]
[365454722,1749679863204,-727.46,0.00019671,2]
[365454723,1749679863214,-903.38,0.00019671,2]
[365454724,1749679863223,-936.21,0.00019671,2]
[365454725,1749679863232,-323.66992488,0.00019671,2]
[365454726,1749679863242,-490.0,0.00019671,2]
[365454727,1749679863252,-847.09,0.00019671,2]
[365454728,1749679863262,-6463.05,0.00019671,2]
[365454729,1749679863272,-490.0,0.00019671,2]
[365454730,1749679863282,-1332.55,0.00019671,2]
[365454731,1749679863292,-5664.59,0.00019671,2]
[365454732,1749679863302,-536.41,0.00019671,2]
[365454733,1749679863311,-490.0,0.00019671,2]
[365454734,1749679863321,-1282.56,0.00019671,2]
[365454735,1749679863331,-480.0,0.00019671,2]
[365454736,1749679863341,-300.05,0.00019671,2]
[365454737,1749679863351,-490.0,0.00019671,2]
[365454738,1749679863361,-3202.29,0.00019671,2]
[365454739,1749679863371,-656.69,0.00019671,2]
[365454740,1749679863381,-490.0,0.00019671,2]
[365454741,1749679863391,-490.0,0.00019671,2]
[365454742,1749679863400,-490.0,0.00019671,2]
[365454743,1749679863411,-2037.92,0.00019671,2]
[365454744,1749679863420,-490.0,0.00019671,2]
[365454745,1749679863432,-490.0,0.00019671,2]
[365454746,1749679863442,-490.0,0.00019671,2]
[365454747,1749679863451,-490.0,0.00019671,2]
[365454748,1749679863462,-1036.65,0.00019671,2]
[365454749,1749679863472,-2825.61,0.00019671,2]
[365454750,1749679863482,-490.0,0.00019671,2]
[365454751,1749679863492,-490.0,0.00019671,2]
[365454752,1749679863501,-490.0,0.00019671,2]
[365454753,1749679863511,-490.0,0.00019671,2]
[365454754,1749679863521,-490.0,0.00019671,2]
[365454755,1749679863530,-490.0,0.00019671,2]
[365454756,1749679863540,-490.0,0.00019671,2]
[365454757,1749679863550,-490.0,0.00019671,2]
[365454758,1749679863560,-490.0,0.00019671,2]
[365454759,1749679863571,-450.0,0.00019671,2]
[365454760,1749679863582,-490.0,0.00019671,2]
[365454761,1749679863592,-1480.07,0.00019671,2]
[365454762,1749679863602,-1085.55,0.00019671,2]
[365454763,1749679863612,-490.0,0.00019671,2]
[365454764,1749679863622,-3703.53,0.00019671,2]
[365454765,1749679863632,-1400.93,0.00019671,2]
[365454766,1749679863642,-490.0,0.00019671,2]
[365454767,1749679863651,-490.0,0.00019671,2]
[365454768,1749679863661,-1152.7,0.00019671,2]
[365454769,1749679863671,-834.61,0.00019671,2]
[365454770,1749679863682,-334.31621494,0.00019671,2]
[365454771,1749679863692,-497.07,0.00019671,2]
[365454772,1749679863702,-1032.15,0.00019671,2]
[365454773,1749679863712,-490.0,0.00019671,2]
[365454774,1749679863722,-490.0,0.00019671,2]
[365454775,1749679863731,-490.0,0.00019671,2]
[365454776,1749679863741,-2089.98,0.00019671,2]
[365454777,1749679863751,-490.0,0.00019671,2]
[365454778,1749679863761,-972.67,0.00019671,2]
[365454779,1749679863771,-450.0,0.00019671,2]
[365454780,1749679863782,-450.0,0.00019671,2]
[365454781,1749679863793,-1442.32,0.00019671,2]
[365454782,1749679863804,-450.0,0.00019671,2]
[365454783,1749679863814,-490.0,0.00019671,2]
[365454784,1749679863825,-490.0,0.00019671,2]
[365454785,1749679863836,-490.0,0.00019671,2]
[365454786,1749679863847,-490.0,0.00019671,2]
[365454787,1749679863857,-490.0,0.00019671,2]
[365454788,1749679863867,-671.28,0.00019671,2]
[365454789,1749679863878,-490.0,0.00019671,2]
[365454790,1749679863889,-490.0,0.00019671,2]
[365454791,1749679863903,-825.9,0.00019671,2]
[365454792,1749679863913,-490.0,0.00019671,2]
[365454793,1749679863923,-490.0,0.00019671,2]
[365454794,1749679863938,-490.0,0.00019671,2]
[365454795,1749679863949,-490.0,0.00019671,2]
[365454796,1749679863960,-490.0,0.00019671,2]
[365454797,1749679863972,-490.0,0.00019671,2]
[365454798,1749679863983,-834.84,0.00019671,2]
[365454799,1749679863994,-497.36,0.00019671,2]
[365454800,1749679864005,-8003.1,0.00019671,2]
[365454801,1749679864016,-936.66,0.00019671,2]
[365454802,1749679864026,-490.0,0.00019671,2]
[365454803,1749679864036,-450.0,0.00019671,2]
[365454804,1749679864047,-1383.82,0.00019671,2]
[365454805,1749679864058,-490.0,0.00019671,2]
[365454806,1749679864069,-490.0,0.00019671,2]
[365454807,1749679864080,-490.0,0.00019671,2]
[365454808,1749679864090,-490.0,0.00019671,2]
[365454809,1749679864099,-1029.44,0.00019671,2]
[365454810,1749679864109,-490.0,0.00019671,2]
[365454811,1749679864119,-490.0,0.00019671,2]
[365454812,1749679864128,-474.24,0.00019671,2]
[365454813,1749679864138,-490.0,0.00019671,2]
[365454814,1749679864148,-490.0,0.00019671,2]
[365454815,1749679864157,-490.0,0.00019671,2]
[365454816,1749679864168,-1407.12,0.00019671,2]
[365454817,1749679864180,-420.0,0.00019671,2]
[365454818,1749679864190,-490.0,0.00019671,2]
[365454819,1749679864200,-490.0,0.00019671,2]
[365454820,1749679864210,-490.0,0.00019671,2]
[365454821,1749679864219,-868.69,0.00019671,2]
[365454822,1749679864229,-490.0,0.00019671,2]
[365454823,1749679864239,-490.0,0.00019671,2]
[365454824,1749679864249,-1348.39,0.00019671,2]
[365454825,1749679864259,-450.0,0.00019671,2]
[365454826,1749679864271,-1755.13,0.00019671,2]
[365454827,1749679864281,-490.0,0.00019671,2]
[365454828,1749679864292,-490.0,0.00019671,2]
[365454829,1749679864303,-490.0,0.00019671,2]
[365454830,1749679864315,-490.0,0.00019671,2]
[365454831,1749679864324,-490.0,0.00019671,2]
[365454832,1749679864334,-504.1,0.00019671,2]
[365454833,1749679864344,-490.0,0.00019671,2]
[365454834,1749679864354,-1066.0,0.00019671,2]
[365454835,1749679864365,-490.0,0.00019671,2]
[365454836,1749679864374,-490.0,0.00019671,2]
[365454837,1749679864384,-490.0,0.00019671,2]
[365454838,1749679864394,-490.0,0.00019671,2]
[365454839,1749679864404,-838.3,0.00019671,2]
[365454840,1749679864414,-815.86,0.00019671,2]
[365454841,1749679864423,-13196.72,0.00019671,2]
[365454842,1749679864435,-490.0,0.00019671,2]
[365454843,1749679864445,-490.0,0.00019671,2]
[365454844,1749679864455,-490.0,0.00019671,2]
[365454845,1749679864465,-490.0,0.00019671,2]
[365454846,1749679864476,-490.0,0.00019671,2]
[365454847,1749679864485,-490.0,0.00019671,2]
[365454848,1749679864494,-3931.42,0.00019671,2]
[365454849,1749679864504,-685.75,0.00019671,2]
[365454850,1749679864701,-2871.61,0.00019671,2]
[365454851,1749679864711,-1646.33,0.00019671,2]
[365454852,1749679864720,-490.0,0.00019671,2]
[365454853,1749679864730,-1693.91,0.00019671,2]
[365454854,1749679864739,-1390.24,0.00019671,2]
[365454855,1749679864748,-490.0,0.00019671,2]
[365454856,1749679864757,-599.74,0.00019671,2]
[365454857,1749679864767,-1113.45,0.00019671,2]
[365454858,1749679864776,-490.0,0.00019671,2]
[365454859,1749679864785,-490.0,0.00019671,2]
[365454860,1749679864795,-751.67,0.00019671,2]
[365454861,1749679864806,-1988.64,0.00019671,2]
[365454862,1749679864816,-706.01,0.00019671,2]
[365454863,1749679864825,-490.0,0.00019671,2]
[365454864,1749679864836,-777.83,0.00019671,2]
[365454865,1749679864846,-570.32,0.00019671,2]
[365454866,1749679864856,-1777.15,0.00019671,2]
[365454867,1749679864866,-1103.72,0.00019671,2]
[365454868,1749679864875,-699.37,0.00019671,2]
[365454869,1749679864885,-490.0,0.00019671,2]
[365454870,1749679864896,-784.43,0.00019671,2]
[365454871,1749679864907,-2194.8,0.00019671,2]
[365454872,1749679864916,-490.0,0.00019671,2]
[365454873,1749679864926,-490.0,0.00019671,2]
[365454874,1749679864936,-3072.09,0.00019671,2]
[365454875,1749679864946,-490.0,0.00019671,2]
[365454876,1749679864956,-600.07,0.00019671,2]
[365454877,1749679864966,-490.0,0.00019671,2]
[365454878,1749679864978,-1262.02,0.00019671,2]
[365454879,1749679864989,-490.0,0.00019671,2]
[365454880,1749679864999,-490.0,0.00019671,2]
[365454881,1749679865009,-490.0,0.00019671,2]
[365454882,1749679865018,-490.0,0.00019671,2]
[365454883,1749679865028,-490.0,0.00019671,2]
[365454884,1749679865038,-490.0,0.00019671,2]
[365454885,1749679865048,-490.0,0.00019671,2]
[365454886,1749679865057,-490.0,0.00019671,2]
[365454887,1749679865067,-725.32,0.00019671,2]
[365454888,1749679865078,-294.12,0.00019671,2]
[365454889,1749679865087,-525.2,0.00019671,2]
[365454890,1749679865097,-490.0,0.00019671,2]
[365454891,1749679865106,-557.76,0.00019671,2]
[365454892,1749679865116,-490.0,0.00019671,2]
[365454893,1749679865125,-518.6,0.00019671,2]
[365454894,1749679865134,-3082.36,0.00019671,2]
[365454895,1749679865143,-490.0,0.00019671,2]
[365454896,1749679865153,-490.0,0.00019671,2]
[365454897,1749679865162,-2032.83,0.00019671,2]
[365454898,1749679865172,-1073.45,0.00019671,2]
[365454899,1749679865183,-490.0,0.00019671,2]
[365454900,1749679865192,-490.0,0.00019671,2]
[365454901,1749679865202,-490.0,0.00019671,2]
[365454902,1749679865212,-490.0,0.00019671,2]
[365454903,1749679865222,-490.0,0.00019671,2]
[365454904,1749679865232,-490.0,0.00019671,2]
[365454905,1749679865242,-490.0,0.00019671,2]
[365454906,1749679865252,-490.0,0.00019671,2]
[365454907,1749679865262,-490.0,0.00019671,2]
[365454908,1749679865272,-490.0,0.00019671,2]
[365454909,1749679865282,-1372.0,0.00019671,2]
[365454910,1749679865291,-1412.72382,0.00019671,2]
[365454911,1749679865301,-684.94,0.00019671,2]
[365454912,1749679865312,-470.0,0.00019671,2]
[365454913,1749679865322,-572.75,0.00019671,2]
[365454914,1749679865332,-490.0,0.00019671,2]
[365454915,1749679865342,-1136.94,0.00019671,2]
[365454916,1749679865352,-2664.18,0.00019671,2]
[365454917,1749679865362,-450.0,0.00019671,2]
[365454918,1749679865372,-2894.8,0.00019671,2]
[365454919,1749679865381,-490.0,0.00019671,2]
[365454920,1749679865391,-490.0,0.00019671,2]
[365454921,1749679865400,-5875.81,0.00019671,2]
[365454922,1749679865410,-490.0,0.00019671,2]
[365454923,1749679865419,-706.94,0.00019671,2]
[365454924,1749679865433,-490.0,0.00019671,2]
[365454925,1749679865442,-490.0,0.00019671,2]
[365454926,1749679865452,-3039.18,0.00019671,2]
[365454927,1749679865462,-500.0,0.00019673,2]
[365454928,1749679865472,-159.94625107,0.00019673,2]
[365454929,1749679865482,-164.08246394,0.00019673,2]
[365454930,1749679865491,-500.0,0.00019673,2]
[365454931,1749679865501,-500.0,0.00019673,2]
[365454932,1749679865511,-500.0,0.00019673,2]
[365454933,1749679865520,-500.0,0.00019673,2]
[365454934,1749679865529,-500.0,0.00019673,2]
[365454935,1749679865538,-198.35320013,0.00019673,2]
[365454936,1749679865548,-500.0,0.00019673,2]
[365454937,1749679865558,-500.0,0.00019673,2]
[365454938,1749679865567,-322.11412872,0.00019673,2]
[365454939,1749679865577,-500.0,0.00019673,2]
[365454940,1749679865587,-260.23465787,0.00019673,2]
[365454941,1749679865597,-164.22897217,0.00019673,2]
[365454942,1749679865606,-500.0,0.00019673,2]
[365454943,1749679865616,-500.0,0.00019673,2]
[365454944,1749679865626,-228.83403682,0.00019673,2]
[365454945,1749679865636,-500.0,0.00019673,2]
[365454946,1749679865646,-500.0,0.00019673,2]
[365454947,1749679865656,-159.94597427,0.00019673,2]
[365454948,1749679865665,-500.0,0.00019673,2]
[365454949,1749679865675,-500.0,0.00019673,2]
[365454950,1749679865689,-500.0,0.00019673,2]
[365454951,1749679865699,-500.0,0.00019673,2]
[365454952,1749679865709,-500.0,0.00019673,2]
[365454953,1749679865719,-508.58321414,0.00019673,2]
[365454954,1749679865728,-500.0,0.00019673,2]
[365454955,1749679865738,-500.0,0.00019673,2]
[365454956,1749679865748,-500.0,0.00019673,2]
[365454957,1749679865757,-421.26875946,0.00019673,2]
[365454958,1749679865767,-500.0,0.00019673,2]
[365454959,1749679865777,-161.77322054,0.00019681,2]
[365454960,1749679865788,-561.14303538,0.00019693,2]
[365454961,1749679865798,-3328.31053841,0.00019696,2]
[365454962,1749679865808,-1000.0,0.000197,2]
[365454963,1749679865819,-579.98,0.000197,2]
[365454964,1749679865828,-1081.71,0.00019702,2]
[365454965,1749679865838,-2636.0,0.00019702,2]
[365454966,1749679865847,-759.3087673,0.00019706,2]
[365454967,1749679865857,-5477.36557095,0.00019717,2]
[365454968,1749679865867,-1000.0,0.00019721,2]
[365454969,1749679865877,-1000.0,0.00019721,2]
[365454970,1749679865887,-1000.0,0.00019721,2]
[365454971,1749679865901,-500.0,0.00019721,2]
[365454972,1749679865910,-151.0,0.00019726,2]
[365454973,1749679865920,-561.14303538,0.00019728,2]
[365454974,1749679865933,-175.024,0.00019735,2]
[365454975,1749679865944,-228.46816994,0.00019736,2]
[365454976,1749679865954,-1500.968,0.00019743,2]
[365454977,1749679865963,-151.48627974,0.00019753,2]
[365454978,1749679865973,-759.3087673,0.00019754,2]
[365454979,1749679865983,-561.14303538,0.00019762,2]
[365454980,1749679865993,-200.84703792,0.00019771,2]
[365454981,1749679866002,-1000.0,0.00019772,2]
[365454982,1749679866012,-561.14303538,0.00019797,2]
[365454983,1749679866021,-3328.31053841,0.00019798,2]
[365454984,1749679866031,-759.3087673,0.00019803,2]
[365454985,1749679866041,-1000.0,0.00019805,2]
[365454986,1749679866050,-5477.36557095,0.00019809,2]
[365454987,1749679866060,-561.14303538,0.00019831,2]
[365454988,1749679866070,-500.0,0.00019834,2]
[365454989,1749679866079,-3800.07,0.00019834,2]
[365454990,1749679866089,-151.0,0.00019835,2]
[365454991,1749679866098,-150.0,0.00019835,2]
[365454992,1749679866107,-573.39150856,0.00019835,2]
[365454993,1749679866117,-150.0,0.00019835,2]
[365454994,1749679866126,-2373.19953968,0.00019835,2]
[365454995,1749679866136,-150.0,0.00019835,2]
[365454996,1749679866146,-36449.8165062,0.00019835,2]
[365454997,1749679866156,-529.95,0.00019835,2]
[365454998,1749679866165,-490.0,0.00019835,2]
[365454999,1749679866175,-490.0,0.00019835,2]
[365455000,1749679866186,-406.98,0.00019835,2]
[365455001,1749679866196,-517.87,0.00019835,2]
[365455002,1749679866205,-490.0,0.00019835,2]
[365455003,1749679866215,-490.0,0.00019835,2]
[365455004,1749679866225,-338.79205361,0.00019835,2]
[365455005,1749679866235,-460.0,0.00019835,2]
[365455006,1749679866244,-460.0,0.00019835,2]
[365455007,1749679866254,-309.46937491,0.00019835,2]
[365455008,1749679866263,-490.0,0.00019835,2]
[365455009,1749679866273,-489.04,0.00019835,2]
[365455010,1749679866282,-506.48,0.00019835,2]
[365455011,1749679866291,-490.0,0.00019835,2]
[365455012,1749679866300,-490.0,0.00019835,2]
[365455013,1749679866309,-490.0,0.00019835,2]
[365455014,1749679866319,-490.0,0.00019835,2]
[365455015,1749679866329,-490.0,0.00019835,2]
[365455016,1749679866339,-490.0,0.00019835,2]
[365455017,1749679866349,-490.0,0.00019835,2]
[365455018,1749679866359,-490.0,0.00019835,2]
[365455019,1749679866368,-490.0,0.00019835,2]
[365455020,1749679866378,-490.0,0.00019835,2]
[365455021,1749679866387,-490.0,0.00019835,2]
[365455022,1749679866397,-490.0,0.00019835,2]
[365455023,1749679866406,-490.0,0.00019835,2]
[365455024,1749679866416,-490.0,0.00019835,2]
[365455025,1749679866425,-490.0,0.00019835,2]
[365455026,1749679866436,-635.25,0.00019835,2]
[365455027,1749679866446,-275.54,0.00019835,2]
[365455028,1749679866456,-576.94,0.00019835,2]
[365455029,1749679866465,-490.0,0.00019835,2]
[365455030,1749679866475,-499.09,0.00019835,2]
[365455031,1749679866484,-490.0,0.00019835,2]
[365455032,1749679866493,-490.0,0.00019835,2]
[365455033,1749679866503,-490.0,0.00019835,2]
[365455034,1749679866512,-490.0,0.00019835,2]
[365455035,1749679866522,-857.86,0.00019835,2]
[365455036,1749679866531,-490.0,0.00019835,2]
[365455037,1749679866541,-1030.53,0.00019835,2]
[365455038,1749679866551,-515.29,0.00019835,2]
[365455039,1749679866561,-490.0,0.00019835,2]
[365455040,1749679866570,-490.0,0.00019835,2]
[365455041,1749679866580,-490.0,0.00019835,2]
[365455042,1749679866589,-544.79,0.00019835,2]
[365455043,1749679866599,-460.0,0.00019835,2]
[365455044,1749679866609,-796.27,0.00019835,2]
[365455045,1749679866619,-460.0,0.00019835,2]
[365455046,1749679866628,-490.0,0.00019835,2]
[365455047,1749679866638,-460.0,0.00019835,2]
[365455048,1749679866647,-490.0,0.00019835,2]
[365455049,1749679866657,-460.0,0.00019835,2]
[365455050,1749679866666,-460.0,0.00019835,2]
[365455051,1749679866676,-1147.4,0.00019835,2]
[365455052,1749679866687,-569.34,0.00019835,2]
[365455053,1749679866697,-400.0,0.00019835,2]
[365455054,1749679866706,-490.0,0.00019835,2]
[365455055,1749679866716,-490.0,0.00019835,2]
[365455056,1749679866725,-167.38,0.00019835,2]
[365455057,1749679866736,-490.0,0.00019835,2]
[365455058,1749679866747,-430.0,0.00019835,2]
[365455059,1749679866757,-490.0,0.00019835,2]
[365455060,1749679866767,-360.66948262,0.00019835,2]
[365455061,1749679866777,-465.4,0.00019835,2]
[365455062,1749679866787,-490.0,0.00019835,2]
[365455063,1749679866797,-821.38,0.00019835,2]
[365455064,1749679866806,-490.0,0.00019835,2]
[365455065,1749679866816,-490.0,0.00019835,2]
[365455066,1749679866826,-490.0,0.00019835,2]
[365455067,1749679866836,-490.0,0.00019835,2]
[365455068,1749679866845,-460.0,0.00019835,2]
[365455069,1749679866855,-490.0,0.00019835,2]
[365455070,1749679866865,-490.0,0.00019835,2]
[365455071,1749679866875,-460.0,0.00019835,2]
[365455072,1749679866885,-490.0,0.00019835,2]
[365455073,1749679866896,-490.0,0.00019835,2]
[365455074,1749679866908,-559.77,0.00019835,2]
[365455075,1749679866917,-440.0,0.00019835,2]